[Event "Late-Titled-Tuesday-Blitz-May-14-2024"]
[Site "Chess.com"]
[Date "2024.05.14"]
[Round "9"]
[White "betta2004"]
[Black "NateSolon"]
[Result "1/2-1/2"]
[WhiteElo "2552"]
[BlackElo "2659"]
[TimeControl "180+1"]
[EndTime "15:41:06 PDT"]
[Termination "Game drawn by repetition"]

1. Nf3 {[%clk 0:03:00.9]} 1... d5 {[%clk 0:02:59]} 2. e3 {[%clk 0:03:00.5]} 2...
c6 {[%clk 0:02:57.2]} 3. b3 {[%clk 0:03:00.8]} 3... Bg4 {[%clk 0:02:56.7]} 4.
Bb2 {[%clk 0:03:00.8]} 4... Nd7 {[%clk 0:02:57.2]} 5. Be2 {[%clk 0:03:01.2]}
5... Ngf6 {[%clk 0:02:56.5]} 6. d4 {[%clk 0:03:01.4]} 6... e6 {[%clk 0:02:56.5]}
7. Nbd2 {[%clk 0:03:01.9]} 7... Bd6 {[%clk 0:02:56.5]} 8. Ne5 {[%clk 0:03:01.8]}
8... Bxe2 {[%clk 0:02:51.2]} 9. Qxe2 {[%clk 0:03:02.7]} 9... Qc7 {[%clk
0:02:43.3]} 10. f4 {[%clk 0:03:02.5]} 10... O-O {[%clk 0:02:39]} 11. O-O {[%clk
0:03:01.7]} 11... c5 {[%clk 0:02:39.1]} 12. c4 {[%clk 0:03:00.2]} 12... cxd4
{[%clk 0:02:34.2]} 13. exd4 {[%clk 0:03:01.1]} 13... dxc4 {[%clk 0:02:31.4]} 14.
bxc4 {[%clk 0:03:00.1]} 14... Rac8 {[%clk 0:02:26.1]} 15. Rac1 {[%clk
0:02:57.1]} 15... Rfd8 {[%clk 0:02:16.8]} 16. Ndf3 {[%clk 0:02:55.5]} 16... Nf8
{[%clk 0:02:12.2]} 17. Ng5 {[%clk 0:02:53.2]} 17... Ng6 {[%clk 0:01:42.2]} 18.
Ngxf7 {[%clk 0:02:49.5]} 18... Rf8 {[%clk 0:01:42.3]} 19. Nxd6 {[%clk
0:02:49.3]} 19... Qxd6 {[%clk 0:01:43.2]} 20. g3 {[%clk 0:02:46.3]} 20... Ne7
{[%clk 0:01:35.6]} 21. Qf3 {[%clk 0:02:44.8]} 21... Nf5 {[%clk 0:01:30.7]} 22.
Rfd1 {[%clk 0:02:43.8]} 22... Qa6 {[%clk 0:01:23.7]} 23. a3 {[%clk 0:02:41.1]}
23... Rfd8 {[%clk 0:01:23]} 24. g4 {[%clk 0:02:33.6]} 24... Nd6 {[%clk
0:01:17.6]} 25. g5 {[%clk 0:02:31.4]} 25... Nd7 {[%clk 0:01:13.8]} 26. d5 {[%clk
0:02:23.1]} 26... Nxe5 {[%clk 0:01:09.9]} 27. Bxe5 {[%clk 0:02:15.4]} 27... Nxc4
{[%clk 0:01:09.3]} 28. dxe6 {[%clk 0:02:12.8]} 28... Qxe6 {[%clk 0:01:08.7]} 29.
Rxd8+ {[%clk 0:02:10.6]} 29... Rxd8 {[%clk 0:01:09.1]} 30. Qxb7 {[%clk
0:02:06.6]} 30... Nxe5 {[%clk 0:00:53.2]} 31. fxe5 {[%clk 0:02:04.1]} 31... Qxe5
{[%clk 0:00:54.1]} 32. Qb3+ {[%clk 0:01:57.7]} 32... Kh8 {[%clk 0:00:53.4]} 33.
Qg3 {[%clk 0:01:54.3]} 33... Qd4+ {[%clk 0:00:50.3]} 34. Qf2 {[%clk 0:01:45]}
34... Qg4+ {[%clk 0:00:49.8]} 35. Qg2 {[%clk 0:01:45.4]} 35... Qd4+ {[%clk
0:00:46.1]} 36. Qf2 {[%clk 0:01:45.1]} 36... Qe5 {[%clk 0:00:45.5]} 37. Qg3
{[%clk 0:01:41.5]} 37... Qd4+ {[%clk 0:00:38.6]} 38. Qf2 {[%clk 0:01:41.4]}
1/2-1/2

[Event "Late-Titled-Tuesday-Blitz-May-14-2024"]
[Site "Chess.com"]
[Date "2024.05.14"]
[Round "9"]
[White "ZachHKL"]
[Black "Godzillator"]
[Result "1-0"]
[WhiteElo "2329"]
[BlackElo "2428"]
[TimeControl "180+1"]
[EndTime "15:41:19 PDT"]
[Termination "ZachHKL won by resignation"]

1. c4 {[%clk 0:03:00.9]} 1... c6 {[%clk 0:02:50.9]} 2. g3 {[%clk 0:03:00.1]}
2... d5 {[%clk 0:02:51.8]} 3. Bg2 {[%clk 0:03:00.5]} 3... Nf6 {[%clk 0:02:43.8]}
4. Nf3 {[%clk 0:03:00.6]} 4... dxc4 {[%clk 0:02:42.5]} 5. O-O {[%clk 0:02:55.9]}
5... b5 {[%clk 0:02:31.3]} 6. a4 {[%clk 0:02:53.7]} 6... Bb7 {[%clk 0:02:30]} 7.
Na3 {[%clk 0:02:50.7]} 7... a6 {[%clk 0:02:29.5]} 8. b3 {[%clk 0:02:44.8]} 8...
cxb3 {[%clk 0:02:28.8]} 9. Qxb3 {[%clk 0:02:45.7]} 9... Qc8 {[%clk 0:02:28.7]}
10. Rb1 {[%clk 0:02:38.6]} 10... e6 {[%clk 0:02:25.8]} 11. d3 {[%clk 0:02:29.6]}
11... Be7 {[%clk 0:02:25.5]} 12. Be3 {[%clk 0:02:26.7]} 12... O-O {[%clk
0:02:25]} 13. Rfc1 {[%clk 0:02:26.8]} 13... Nd5 {[%clk 0:02:22.7]} 14. axb5
{[%clk 0:02:22.1]} 14... Nxe3 {[%clk 0:02:20.3]} 15. fxe3 {[%clk 0:02:11.6]}
15... axb5 {[%clk 0:02:17.6]} 16. Nxb5 {[%clk 0:02:11]} 16... Qd7 {[%clk
0:02:05.6]} 17. Nc3 {[%clk 0:01:52]} 17... Ba6 {[%clk 0:01:42]} 18. Ne4 {[%clk
0:01:45.6]} 18... Qa7 {[%clk 0:01:40.9]} 19. Kf2 {[%clk 0:01:39.2]} 19... Bb5
{[%clk 0:01:27.9]} 20. Nd4 {[%clk 0:01:28]} 20... Nd7 {[%clk 0:01:16]} 21. Nxb5
{[%clk 0:01:17.8]} 21... cxb5 {[%clk 0:01:16]} 22. Qxb5 {[%clk 0:01:16.9]} 22...
Nf6 {[%clk 0:01:11.7]} 23. Nxf6+ {[%clk 0:01:14.3]} 23... Bxf6 {[%clk 0:01:11]}
24. Bxa8 {[%clk 0:01:14.7]} 24... Qxa8 {[%clk 0:01:10.4]} 25. Qb7 {[%clk
0:01:12.4]} 25... Qa4 {[%clk 0:01:08.4]} 26. Rc8 {[%clk 0:01:11.3]} 26... g6
{[%clk 0:01:00.8]} 27. Rxf8+ {[%clk 0:01:10]} 27... Kxf8 {[%clk 0:01:00.8]} 28.
Qb4+ {[%clk 0:01:10.1]} 28... Qxb4 {[%clk 0:00:59.3]} 29. Rxb4 {[%clk 0:01:11]}
29... h5 {[%clk 0:00:59]} 30. Kf3 {[%clk 0:01:11.3]} 30... Kg7 {[%clk
0:00:58.3]} 31. e4 {[%clk 0:01:08.5]} 31... e5 {[%clk 0:00:58.1]} 32. e3 {[%clk
0:01:08]} 32... g5 {[%clk 0:00:56.4]} 33. h3 {[%clk 0:01:07.3]} 1-0

[Event "Late-Titled-Tuesday-Blitz-May-14-2024"]
[Site "Chess.com"]
[Date "2024.05.14"]
[Round "9"]
[White "mouseslips_are_the_best"]
[Black "rdarruda"]
[Result "1/2-1/2"]
[WhiteElo "2371"]
[BlackElo "2493"]
[TimeControl "180+1"]
[EndTime "15:41:31 PDT"]
[Termination "Game drawn by repetition"]

1. e4 {[%clk 0:03:00.9]} 1... c5 {[%clk 0:02:59.5]} 2. Nf3 {[%clk 0:02:58.3]}
2... Nc6 {[%clk 0:02:59.6]} 3. d4 {[%clk 0:02:58.5]} 3... cxd4 {[%clk
0:02:59.6]} 4. Nxd4 {[%clk 0:02:59.4]} 4... e5 {[%clk 0:02:59.2]} 5. Nb5 {[%clk
0:02:58.9]} 5... a6 {[%clk 0:02:59.2]} 6. Nd6+ {[%clk 0:02:58.3]} 6... Bxd6
{[%clk 0:02:59.9]} 7. Qxd6 {[%clk 0:02:58.7]} 7... Qe7 {[%clk 0:03:00.7]} 8.
Qxe7+ {[%clk 0:02:53.1]} 8... Ngxe7 {[%clk 0:03:01.6]} 9. c4 {[%clk 0:02:53.4]}
9... d6 {[%clk 0:03:00]} 10. Nc3 {[%clk 0:02:52.7]} 10... Be6 {[%clk 0:03:00]}
11. Be3 {[%clk 0:02:42.1]} 11... O-O {[%clk 0:02:57.1]} 12. O-O-O {[%clk
0:02:41.6]} 12... Rfd8 {[%clk 0:02:56.9]} 13. Nd5 {[%clk 0:02:35.5]} 13... Rac8
{[%clk 0:02:41.5]} 14. Kb1 {[%clk 0:02:29.8]} 14... Bxd5 {[%clk 0:02:31]} 15.
cxd5 {[%clk 0:02:28.5]} 15... Nb8 {[%clk 0:02:26.9]} 16. Bb6 {[%clk 0:02:24.5]}
16... Re8 {[%clk 0:02:27.1]} 17. Bd3 {[%clk 0:02:23.6]} 17... Nd7 {[%clk
0:02:26.5]} 18. Be3 {[%clk 0:02:23.9]} 18... Nc5 {[%clk 0:02:25.4]} 19. Bxc5
{[%clk 0:02:21.6]} 19... Rxc5 {[%clk 0:02:24.4]} 20. Rc1 {[%clk 0:02:21.8]}
20... Rec8 {[%clk 0:02:23.3]} 21. b4 {[%clk 0:02:18.9]} 21... Rxc1+ {[%clk
0:02:21.6]} 22. Rxc1 {[%clk 0:02:19.6]} 22... Rxc1+ {[%clk 0:02:21.7]} 23. Kxc1
{[%clk 0:02:20.1]} 23... Kf8 {[%clk 0:02:19.4]} 24. a4 {[%clk 0:02:20.5]} 24...
Nc8 {[%clk 0:02:13]} 25. a5 {[%clk 0:02:19.1]} 25... Ke7 {[%clk 0:02:06.8]} 26.
Kb2 {[%clk 0:02:18.1]} 26... Kd8 {[%clk 0:02:04.3]} 27. Kc3 {[%clk 0:02:18.2]}
27... Kc7 {[%clk 0:02:04.3]} 28. Kd2 {[%clk 0:02:16.1]} 28... g6 {[%clk
0:01:56.2]} 29. Ke3 {[%clk 0:02:16]} 29... Ne7 {[%clk 0:01:53.2]} 30. f4 {[%clk
0:02:13.6]} 30... f6 {[%clk 0:01:52.4]} 31. g3 {[%clk 0:02:08.3]} 31... Nc8
{[%clk 0:01:45.9]} 32. Be2 {[%clk 0:02:05.6]} 32... Ne7 {[%clk 0:01:43.6]} 33.
h4 {[%clk 0:02:03]} 33... Kb8 {[%clk 0:01:36.1]} 34. h5 {[%clk 0:02:02.2]} 34...
g5 {[%clk 0:01:33.9]} 35. fxg5 {[%clk 0:01:51.5]} 35... fxg5 {[%clk 0:01:33.1]}
36. Kf3 {[%clk 0:01:51.3]} 36... h6 {[%clk 0:01:31.3]} 37. Kg4 {[%clk
0:01:51.9]} 37... Kc7 {[%clk 0:01:30.4]} 38. Kh3 {[%clk 0:01:50.5]} 38... Kd8
{[%clk 0:01:26.4]} 39. Kg2 {[%clk 0:01:48.5]} 39... Ng8 {[%clk 0:01:25.1]} 40.
g4 {[%clk 0:01:42]} 40... Nf6 {[%clk 0:01:25.2]} 41. Bf3 {[%clk 0:01:42.6]}
41... Kc7 {[%clk 0:01:24.7]} 42. Kf2 {[%clk 0:01:43.2]} 42... b6 {[%clk
0:01:23.5]} 43. Ke3 {[%clk 0:01:43.4]} 43... bxa5 {[%clk 0:01:20.3]} 44. bxa5
{[%clk 0:01:43.6]} 44... Kb7 {[%clk 0:01:19.4]} 45. Kd3 {[%clk 0:01:43.8]} 45...
Nd7 {[%clk 0:01:19.9]} 46. Kc4 {[%clk 0:01:42.9]} 46... Nc5 {[%clk 0:01:20.8]}
47. Kb4 {[%clk 0:01:43.2]} 47... Nd3+ {[%clk 0:01:20.6]} 48. Kc3 {[%clk
0:01:41.7]} 48... Nf4 {[%clk 0:01:16.6]} 49. Kb4 {[%clk 0:01:39.9]} 49... Nd3+
{[%clk 0:01:15.7]} 50. Kc3 {[%clk 0:01:39.8]} 50... Nc5 {[%clk 0:01:15.8]} 51.
Kb4 {[%clk 0:01:39.7]} 51... Kc7 {[%clk 0:01:15.6]} 52. Kc4 {[%clk 0:01:38.7]}
52... Nb7 {[%clk 0:01:13.1]} 53. Kb4 {[%clk 0:01:38.8]} 53... Kb8 {[%clk
0:01:13.5]} 54. Be2 {[%clk 0:01:37.8]} 54... Ka7 {[%clk 0:01:14.4]} 55. Bf3
{[%clk 0:01:38]} 55... Nd8 {[%clk 0:01:14.5]} 56. Kc4 {[%clk 0:01:37.6]} 56...
Nf7 {[%clk 0:01:15]} 57. Kb4 {[%clk 0:01:38.2]} 57... Nh8 {[%clk 0:01:15.5]} 58.
Kc4 {[%clk 0:01:38.6]} 58... Nf7 {[%clk 0:01:16.4]} 59. Kb4 {[%clk 0:01:39.1]}
59... Nd8 {[%clk 0:01:17]} 60. Kc4 {[%clk 0:01:39.2]} 60... Nb7 {[%clk
0:01:17.9]} 61. Kb4 {[%clk 0:01:39.7]} 61... Nc5 {[%clk 0:01:18.3]} 62. Kc4
{[%clk 0:01:39.5]} 62... Na4 {[%clk 0:01:18.2]} 63. Kb4 {[%clk 0:01:39.1]} 63...
Nc5 {[%clk 0:01:14.7]} 64. Kc4 {[%clk 0:01:38.5]} 64... Kb7 {[%clk 0:01:15.4]}
65. Kb4 {[%clk 0:01:38.3]} 1/2-1/2

[Event "Late-Titled-Tuesday-Blitz-May-14-2024"]
[Site "Chess.com"]
[Date "2024.05.14"]
[Round "9"]
[White "Sanyura"]
[Black "Michalczak"]
[Result "1-0"]
[WhiteElo "2651"]
[BlackElo "2505"]
[TimeControl "180+1"]
[EndTime "15:41:32 PDT"]
[Termination "Sanyura won by resignation"]

1. e4 {[%clk 0:02:59.7]} 1... e5 {[%clk 0:02:57.6]} 2. Nf3 {[%clk 0:02:58.9]}
2... Nc6 {[%clk 0:02:57.6]} 3. Bb5 {[%clk 0:02:58.1]} 3... f5 {[%clk 0:02:56.9]}
4. d3 {[%clk 0:02:57.8]} 4... fxe4 {[%clk 0:02:56.2]} 5. dxe4 {[%clk 0:02:57.8]}
5... Nf6 {[%clk 0:02:56.9]} 6. Bg5 {[%clk 0:02:57.3]} 6... h6 {[%clk 0:02:50.7]}
7. Bxf6 {[%clk 0:02:55]} 7... Qxf6 {[%clk 0:02:51.6]} 8. Nbd2 {[%clk 0:02:54.9]}
8... d6 {[%clk 0:02:51]} 9. h3 {[%clk 0:02:53.8]} 9... Be7 {[%clk 0:02:50.5]}
10. c3 {[%clk 0:02:51.8]} 10... O-O {[%clk 0:02:48.7]} 11. O-O {[%clk
0:02:48.4]} 11... Kh8 {[%clk 0:02:44.5]} 12. Be2 {[%clk 0:02:42.7]} 12... Qg6
{[%clk 0:02:41.3]} 13. Kh1 {[%clk 0:02:41.8]} 13... Rf4 {[%clk 0:02:39.3]} 14.
Nh2 {[%clk 0:02:39.2]} 14... Be6 {[%clk 0:02:34.3]} 15. Bg4 {[%clk 0:02:39.6]}
15... Raf8 {[%clk 0:02:28.6]} 16. Bxe6 {[%clk 0:02:38.7]} 16... Qxe6 {[%clk
0:02:29.5]} 17. Ng4 {[%clk 0:02:34.9]} 17... Bg5 {[%clk 0:02:20.2]} 18. Qe2
{[%clk 0:02:31.6]} 18... a6 {[%clk 0:02:16.9]} 19. Ne3 {[%clk 0:02:26.7]} 19...
Qf7 {[%clk 0:02:10.8]} 20. f3 {[%clk 0:02:22.9]} 20... Rh4 {[%clk 0:02:09.3]}
21. Nf5 {[%clk 0:02:17.6]} 21... Rh5 {[%clk 0:02:07]} 22. h4 {[%clk 0:01:24.8]}
22... Bxh4 {[%clk 0:01:59.1]} 23. g4 {[%clk 0:01:24.5]} 23... Rg5 {[%clk
0:01:59.3]} 24. Nxh4 {[%clk 0:01:24]} 24... h5 {[%clk 0:01:58.5]} 25. Rg1 {[%clk
0:00:57.3]} 25... hxg4 {[%clk 0:01:52.9]} 26. Rxg4 {[%clk 0:00:56.7]} 26... Rxg4
{[%clk 0:01:53.3]} 27. fxg4 {[%clk 0:00:57.6]} 27... Ne7 {[%clk 0:01:48.2]} 28.
Rf1 {[%clk 0:00:55.1]} 28... Qe8 {[%clk 0:01:48.4]} 29. Nf5 {[%clk 0:00:31.9]}
29... Ng6 {[%clk 0:01:42.5]} 30. Nf3 {[%clk 0:00:29.4]} 30... Nf4 {[%clk
0:01:38.5]} 31. Qh2+ {[%clk 0:00:29.3]} 31... Kg8 {[%clk 0:01:39.2]} 32. Ng5
{[%clk 0:00:29.2]} 1-0

[Event "Late-Titled-Tuesday-Blitz-May-14-2024"]
[Site "Chess.com"]
[Date "2024.05.14"]
[Round "9"]
[White "Nor1lsk"]
[Black "TigrVShlyape"]
[Result "0-1"]
[WhiteElo "2781"]
[BlackElo "2944"]
[TimeControl "180+1"]
[EndTime "15:41:39 PDT"]
[Termination "TigrVShlyape won by resignation"]

1. e4 {[%clk 0:03:00.9]} 1... e5 {[%clk 0:02:58.3]} 2. Nc3 {[%clk 0:03:00.1]}
2... Nf6 {[%clk 0:02:57]} 3. d4 {[%clk 0:03:00.2]} 3... exd4 {[%clk 0:02:56.1]}
4. Qxd4 {[%clk 0:03:01.1]} 4... Nc6 {[%clk 0:02:55.4]} 5. Qd3 {[%clk 0:03:01.4]}
5... g6 {[%clk 0:02:49.1]} 6. Bg5 {[%clk 0:03:00]} 6... h6 {[%clk 0:02:42.6]} 7.
Bh4 {[%clk 0:02:59.4]} 7... Bg7 {[%clk 0:02:40.7]} 8. f4 {[%clk 0:02:52.6]} 8...
d6 {[%clk 0:02:37.9]} 9. O-O-O {[%clk 0:02:41.3]} 9... g5 {[%clk 0:02:36.2]} 10.
fxg5 {[%clk 0:02:36]} 10... Ng4 {[%clk 0:02:35.3]} 11. gxh6 {[%clk 0:02:21.4]}
11... Bxh6+ {[%clk 0:02:34.2]} 12. Kb1 {[%clk 0:02:16.8]} 12... Qxh4 {[%clk
0:02:34.1]} 13. Nd5 {[%clk 0:02:10.6]} 13... Qd8 {[%clk 0:02:17.4]} 14. Qc3
{[%clk 0:02:07]} 14... Nge5 {[%clk 0:02:16.9]} 15. Nf3 {[%clk 0:02:06.5]} 15...
Bg7 {[%clk 0:02:14.2]} 16. Bb5 {[%clk 0:02:04.6]} 16... Bd7 {[%clk 0:02:13]} 17.
Rhf1 {[%clk 0:01:53.4]} 17... a6 {[%clk 0:02:10.9]} 18. Ba4 {[%clk 0:01:50.9]}
18... O-O {[%clk 0:02:01.7]} 19. Bb3 {[%clk 0:01:40.8]} 19... Be6 {[%clk
0:02:01]} 20. Qd2 {[%clk 0:01:34.1]} 20... a5 {[%clk 0:01:56.6]} 21. a3 {[%clk
0:01:31.4]} 21... b5 {[%clk 0:01:55.7]} 22. g4 {[%clk 0:01:06.7]} 22... Nxf3
{[%clk 0:01:52.9]} 23. Rxf3 {[%clk 0:01:06]} 23... Ne5 {[%clk 0:01:53]} 24. Rg3
{[%clk 0:00:58.3]} 24... c6 {[%clk 0:01:51.2]} 25. Ne3 {[%clk 0:00:54.2]} 25...
Qg5 {[%clk 0:01:40.7]} 26. Qf2 {[%clk 0:00:50.7]} 26... Qf6 {[%clk 0:01:29.4]}
27. Qe2 {[%clk 0:00:33.2]} 27... Nc4 {[%clk 0:01:26.5]} 0-1

[Event "Late-Titled-Tuesday-Blitz-May-14-2024"]
[Site "Chess.com"]
[Date "2024.05.14"]
[Round "9"]
[White "Pitomina"]
[Black "Masterisback04"]
[Result "1-0"]
[WhiteElo "2537"]
[BlackElo "2067"]
[TimeControl "180+1"]
[EndTime "15:41:40 PDT"]
[Termination "Pitomina won on time"]

1. d4 {[%clk 0:03:00.9]} 1... Nf6 {[%clk 0:02:42.8]} 2. c4 {[%clk 0:02:57.9]}
2... g6 {[%clk 0:02:41.8]} 3. Nc3 {[%clk 0:02:57]} 3... Bg7 {[%clk 0:02:40.4]}
4. Nf3 {[%clk 0:02:57.1]} 4... O-O {[%clk 0:02:39.6]} 5. e4 {[%clk 0:02:56.6]}
5... d6 {[%clk 0:02:39.2]} 6. Be2 {[%clk 0:02:56.9]} 6... e5 {[%clk 0:02:38.5]}
7. O-O {[%clk 0:02:56.3]} 7... exd4 {[%clk 0:02:38.4]} 8. Nxd4 {[%clk
0:02:55.8]} 8... Re8 {[%clk 0:02:38.6]} 9. f3 {[%clk 0:02:56.1]} 9... Nc6 {[%clk
0:02:38.4]} 10. Be3 {[%clk 0:02:51.6]} 10... Nh5 {[%clk 0:02:38.4]} 11. Qd2
{[%clk 0:02:51.5]} 11... Nf4 {[%clk 0:02:38.6]} 12. Rad1 {[%clk 0:02:48.8]}
12... Bxd4 {[%clk 0:01:53.6]} 13. Bxd4 {[%clk 0:02:47.9]} 13... Qg5 {[%clk
0:01:37.9]} 14. g3 {[%clk 0:02:30.9]} 14... Nxd4 {[%clk 0:01:09.2]} 15. Qxd4
{[%clk 0:02:08.5]} 15... Ne6 {[%clk 0:00:41.7]} 16. Qd2 {[%clk 0:02:04.9]} 16...
Qc5+ {[%clk 0:00:38.5]} 17. Kh1 {[%clk 0:02:02.1]} 17... Rd8 {[%clk 0:00:20.2]}
18. Nd5 {[%clk 0:01:59.2]} 18... c6 {[%clk 0:00:20.2]} 19. Ne3 {[%clk
0:01:50.1]} 19... b6 {[%clk 0:00:05.6]} 20. Qc3 {[%clk 0:01:49.8]} 20... Qe5
{[%clk 0:00:02.2]} 21. Qxe5 {[%clk 0:01:46.3]} 21... dxe5 {[%clk 0:00:03.1]} 22.
Rxd8+ {[%clk 0:01:45.9]} 22... Nxd8 {[%clk 0:00:04]} 23. c5 {[%clk 0:01:45.2]}
23... Ne6 {[%clk 0:00:03.5]} 24. cxb6 {[%clk 0:01:40.2]} 24... axb6 {[%clk
0:00:03.5]} 25. a3 {[%clk 0:01:41.1]} 25... Nd4 {[%clk 0:00:03.5]} 26. Bd3
{[%clk 0:01:40.5]} 26... Ba6 {[%clk 0:00:02]} 27. Bxa6 {[%clk 0:01:39.3]} 27...
Rxa6 {[%clk 0:00:02.9]} 28. Nc4 {[%clk 0:01:39.8]} 28... f6 {[%clk 0:00:02.5]}
29. f4 {[%clk 0:01:38.6]} 29... b5 {[%clk 0:00:01.4]} 30. Ne3 {[%clk 0:01:34.2]}
1-0

[Event "Late-Titled-Tuesday-Blitz-May-14-2024"]
[Site "Chess.com"]
[Date "2024.05.14"]
[Round "9"]
[White "balack95"]
[Black "hsd2016"]
[Result "0-1"]
[WhiteElo "2464"]
[BlackElo "2320"]
[TimeControl "180+1"]
[EndTime "15:41:42 PDT"]
[Termination "hsd2016 won by resignation"]

1. Nf3 {[%clk 0:03:00.9]} 1... Nf6 {[%clk 0:02:47.8]} 2. c4 {[%clk 0:02:59.7]}
2... g6 {[%clk 0:02:48.7]} 3. g3 {[%clk 0:02:59.6]} 3... Bg7 {[%clk 0:02:48]} 4.
Bg2 {[%clk 0:03:00.5]} 4... O-O {[%clk 0:02:43.9]} 5. O-O {[%clk 0:03:01.4]}
5... c6 {[%clk 0:02:44.4]} 6. d4 {[%clk 0:02:55.3]} 6... d5 {[%clk 0:02:40.9]}
7. b3 {[%clk 0:02:55.5]} 7... Ne4 {[%clk 0:02:29.9]} 8. Bb2 {[%clk 0:02:55]}
8... Nd7 {[%clk 0:02:29.1]} 9. cxd5 {[%clk 0:02:54]} 9... cxd5 {[%clk 0:02:30]}
10. Nc3 {[%clk 0:02:53.5]} 10... Nxc3 {[%clk 0:02:28]} 11. Bxc3 {[%clk
0:02:53.5]} 11... Nf6 {[%clk 0:02:27.3]} 12. Ne5 {[%clk 0:02:53.9]} 12... Ne4
{[%clk 0:02:23.4]} 13. Bb2 {[%clk 0:02:54.3]} 13... f6 {[%clk 0:02:22]} 14. Nd3
{[%clk 0:02:51.1]} 14... b6 {[%clk 0:02:21.8]} 15. Rc1 {[%clk 0:02:48.6]} 15...
Bb7 {[%clk 0:02:21.5]} 16. b4 {[%clk 0:02:40.1]} 16... Qd7 {[%clk 0:02:20.1]}
17. Qb3 {[%clk 0:02:39.8]} 17... Nd2 {[%clk 0:02:19.2]} 18. Qd1 {[%clk
0:02:34.3]} 18... Nxf1 {[%clk 0:02:19.3]} 19. Kxf1 {[%clk 0:02:35]} 19... Rac8
{[%clk 0:02:19.9]} 20. Rxc8 {[%clk 0:02:30.9]} 20... Rxc8 {[%clk 0:02:20.8]} 21.
Kg1 {[%clk 0:02:29.3]} 21... Rc7 {[%clk 0:02:18.4]} 22. h4 {[%clk 0:02:24]}
22... Qb5 {[%clk 0:02:16.8]} 23. Kh2 {[%clk 0:02:15]} 23... Qc4 {[%clk
0:02:03.2]} 24. Qa4 {[%clk 0:02:13]} 24... Bc6 {[%clk 0:02:02.8]} 25. Qa3 {[%clk
0:02:07.1]} 25... Qc2 {[%clk 0:02:01.6]} 26. Bf3 {[%clk 0:02:04.3]} 26... Rd7
{[%clk 0:01:47.8]} 27. Qa6 {[%clk 0:01:59.9]} 27... Rc7 {[%clk 0:01:23.8]} 28.
b5 {[%clk 0:01:57.4]} 28... Ba8 {[%clk 0:01:22.8]} 29. a4 {[%clk 0:01:32.5]}
29... Qd2 {[%clk 0:01:16.6]} 30. Ba3 {[%clk 0:01:25]} 30... Qc3 {[%clk
0:00:52.2]} 31. a5 {[%clk 0:01:18.8]} 31... Qxa3 {[%clk 0:00:48.3]} 32. axb6
{[%clk 0:01:08.8]} 32... Qxa6 {[%clk 0:00:47.9]} 33. bxa6 {[%clk 0:01:09.2]}
33... axb6 {[%clk 0:00:48.1]} 34. Nb4 {[%clk 0:01:10]} 34... e6 {[%clk
0:00:44.2]} 35. e4 {[%clk 0:01:08.4]} 35... dxe4 {[%clk 0:00:43.4]} 36. Be2
{[%clk 0:01:06.7]} 36... Bf8 {[%clk 0:00:43.6]} 0-1

[Event "Late-Titled-Tuesday-Blitz-May-14-2024"]
[Site "Chess.com"]
[Date "2024.05.14"]
[Round "9"]
[White "Eliwood44"]
[Black "jinxy2009"]
[Result "0-1"]
[WhiteElo "2414"]
[BlackElo "2308"]
[TimeControl "180+1"]
[EndTime "15:41:42 PDT"]
[Termination "jinxy2009 won by resignation"]

1. d4 {[%clk 0:02:57.9]} 1... Nf6 {[%clk 0:02:57.6]} 2. c4 {[%clk 0:02:57.6]}
2... g6 {[%clk 0:02:58.2]} 3. Nc3 {[%clk 0:02:57.8]} 3... d5 {[%clk 0:02:57.7]}
4. Nf3 {[%clk 0:02:56.4]} 4... Bg7 {[%clk 0:02:57.9]} 5. Bf4 {[%clk 0:02:55.9]}
5... O-O {[%clk 0:02:57.6]} 6. e3 {[%clk 0:02:56.4]} 6... c5 {[%clk 0:02:58]} 7.
dxc5 {[%clk 0:02:56.1]} 7... Ne4 {[%clk 0:02:55.5]} 8. Rc1 {[%clk 0:02:51.9]}
8... Qa5 {[%clk 0:02:54.9]} 9. Be5 {[%clk 0:02:41.8]} 9... Bxe5 {[%clk
0:02:49.7]} 10. Nxe5 {[%clk 0:02:41.1]} 10... Nxc3 {[%clk 0:02:50.3]} 11. Rxc3
{[%clk 0:02:40.7]} 11... Qxa2 {[%clk 0:02:40]} 12. cxd5 {[%clk 0:02:35.7]} 12...
Qxb2 {[%clk 0:02:38]} 13. Qc1 {[%clk 0:02:17.6]} 13... Qxc1+ {[%clk 0:02:26.8]}
14. Rxc1 {[%clk 0:02:15.7]} 14... Nd7 {[%clk 0:02:25.8]} 15. Nd3 {[%clk
0:01:53.6]} 15... Nf6 {[%clk 0:02:21]} 16. Nf4 {[%clk 0:01:45.4]} 16... a5
{[%clk 0:02:12.1]} 17. Bc4 {[%clk 0:01:26]} 17... Bd7 {[%clk 0:02:07.7]} 18. Ke2
{[%clk 0:01:12]} 18... Rfc8 {[%clk 0:02:07.9]} 19. Nd3 {[%clk 0:01:11.4]} 19...
a4 {[%clk 0:02:00.2]} 20. f3 {[%clk 0:01:09.8]} 20... Ra5 {[%clk 0:01:48.4]} 21.
Ba2 {[%clk 0:01:08.9]} 21... Bb5 {[%clk 0:01:45.8]} 22. d6 {[%clk 0:01:03]}
22... Rd8 {[%clk 0:01:29.1]} 23. Rhd1 {[%clk 0:00:30.7]} 23... exd6 {[%clk
0:01:28.1]} 24. Kf2 {[%clk 0:00:28.7]} 24... dxc5 {[%clk 0:01:23.1]} 25. Bxf7+
{[%clk 0:00:24.2]} 25... Kxf7 {[%clk 0:01:09.8]} 26. Ne5+ {[%clk 0:00:24.1]}
26... Ke7 {[%clk 0:01:10.3]} 27. Rxd8 {[%clk 0:00:23.5]} 27... Kxd8 {[%clk
0:01:10.3]} 28. Rd1+ {[%clk 0:00:24.4]} 28... Ke7 {[%clk 0:01:01.5]} 0-1

[Event "Late-Titled-Tuesday-Blitz-May-14-2024"]
[Site "Chess.com"]
[Date "2024.05.14"]
[Round "9"]
[White "XDPS"]
[Black "jinbojinbo"]
[Result "1-0"]
[WhiteElo "2810"]
[BlackElo "2655"]
[TimeControl "180+1"]
[EndTime "15:41:51 PDT"]
[Termination "XDPS won by resignation"]

1. d4 {[%clk 0:03:00.9]} 1... Nf6 {[%clk 0:02:59.4]} 2. Nf3 {[%clk 0:03:00.2]}
2... g6 {[%clk 0:02:59.7]} 3. Nbd2 {[%clk 0:03:00.2]} 3... d5 {[%clk 0:02:59.6]}
4. e3 {[%clk 0:03:00.6]} 4... Bg7 {[%clk 0:02:59.4]} 5. b4 {[%clk 0:03:01.3]}
5... O-O {[%clk 0:02:58.7]} 6. c4 {[%clk 0:03:01.9]} 6... dxc4 {[%clk
0:02:57.4]} 7. Bxc4 {[%clk 0:03:01.8]} 7... a5 {[%clk 0:02:57.6]} 8. b5 {[%clk
0:03:02]} 8... c6 {[%clk 0:02:58]} 9. a4 {[%clk 0:03:02]} 9... Bf5 {[%clk
0:02:55.5]} 10. O-O {[%clk 0:03:01.2]} 10... cxb5 {[%clk 0:02:54.5]} 11. axb5
{[%clk 0:03:01.2]} 11... Nbd7 {[%clk 0:02:54.8]} 12. Re1 {[%clk 0:03:00.8]}
12... Nb6 {[%clk 0:02:53.9]} 13. Ba2 {[%clk 0:03:01.2]} 13... Ne4 {[%clk
0:02:51.3]} 14. Nxe4 {[%clk 0:03:00.5]} 14... Bxe4 {[%clk 0:02:51.1]} 15. Ba3
{[%clk 0:03:01.2]} 15... Rc8 {[%clk 0:02:43.9]} 16. Bc5 {[%clk 0:02:59.6]} 16...
Nd7 {[%clk 0:02:40.2]} 17. Ba3 {[%clk 0:02:57.4]} 17... Nb6 {[%clk 0:02:40.2]}
18. Bc5 {[%clk 0:02:44.6]} 18... Nd7 {[%clk 0:02:39.8]} 19. Rc1 {[%clk
0:02:45.4]} 19... Nxc5 {[%clk 0:02:30.5]} 20. dxc5 {[%clk 0:02:46.3]} 20... Bb2
{[%clk 0:02:09.9]} 21. Rc4 {[%clk 0:02:07.6]} 21... Bd3 {[%clk 0:02:02.7]} 22.
Rf4 {[%clk 0:01:48]} 22... Bxb5 {[%clk 0:01:51.6]} 23. Qb3 {[%clk 0:01:46.5]}
23... Rxc5 {[%clk 0:01:25.4]} 24. Qxb2 {[%clk 0:01:36.7]} 24... Bc6 {[%clk
0:01:19.6]} 25. Ne5 {[%clk 0:01:30]} 25... Bd5 {[%clk 0:01:16.8]} 26. Rd1 {[%clk
0:01:23]} 26... f6 {[%clk 0:00:45.8]} 27. Rfd4 {[%clk 0:00:50.6]} 27... e6
{[%clk 0:00:37]} 28. Nd3 {[%clk 0:00:50.5]} 28... Rc7 {[%clk 0:00:33.9]} 29. e4
{[%clk 0:00:50.5]} 1-0